bitfinex/quotes_BTCUSD_20260127
["timestamp","ask_amount","ask_price","bid_price","bid_amount"]
[1769477281558,0.39419396,88590.0,88577.0,0.02311086]
[1769477282116,0.02273033,88585.0,88566.0,0.116266]
[1769477282321,0.46331144,88584.0,88566.0,0.116266]
[1769477282484,0.48604177,88584.0,88566.0,0.116266]
[1769477282695,0.48604177,88584.0,88566.0,0.61801095]
[1769477282901,0.48604177,88584.0,88567.0,0.47863409]
[1769477286288,0.48604177,88584.0,88567.0,0.50174495]
[1769477286516,0.48604177,88584.0,88568.0,0.11612]
[1769477290888,0.12789675,88584.0,88569.0,0.06180109]
[1769477291209,0.02273033,88584.0,88569.0,0.54043518]
[1769477293295,0.32066594,88589.0,88569.0,0.56354604]
[1769477293498,0.32066594,88589.0,88570.0,0.0679812]
[1769477294371,0.34339627,88589.0,88570.0,0.0679812]
[1769477294585,0.34339627,88589.0,88571.0,0.50174495]
[1769477294814,0.34339627,88589.0,88572.0,0.02311086]
[1769477295468,0.01128821,88588.0,88573.0,0.02311086]
[1769477295714,0.01128897,88582.0,88568.0,0.11612]
[1769477295986,0.47460028,88583.0,88570.0,0.37647371]
[1769477296230,0.01128897,88582.0,88570.0,0.37647371]
[1769477296467,0.47460028,88583.0,88570.0,0.37647371]
[1769477296468,0.46331144,88583.0,88570.0,0.37647371]
[1769477297147,0.01128833,88587.0,88570.0,0.37647371]
[1769477297452,0.01128833,88587.0,88570.0,0.43941073]
[1769477297816,0.01128833,88587.0,88570.0,0.37647371]
[1769477299048,0.01128833,88587.0,88570.0,0.39898791]
[1769477299277,0.48604177,88589.0,88570.0,0.39898791]
[1769477299493,0.01128821,88588.0,88570.0,0.91446925]
[1769477299778,0.01128821,88588.0,88570.0,0.89195505]
[1769477299980,0.01128821,88588.0,88571.0,0.0225142]
[1769477300340,0.33381668,88589.0,88571.0,0.0225142]
[1769477300749,0.33381668,88589.0,88572.0,0.02789952]
[1769477302769,0.01128833,88587.0,88572.0,0.02789952]
[1769477302977,0.01128859,88585.0,88572.0,0.02789952]
[1769477303173,0.01128872,88584.0,88572.0,0.02789952]
[1769477303374,0.0112891,88581.0,88572.0,0.02789952]
[1769477303789,0.01128948,88578.0,88566.0,0.000146]
[1769477304176,0.4703244,88577.0,88567.0,0.11612]
[1769477305344,0.01128897,88582.0,88567.0,0.11612]
[1769477305589,0.01128897,88582.0,88567.0,0.11567043]
[1769477305785,0.01128884,88583.0,88567.0,0.11535771]
[1769477305994,0.01128884,88583.0,88567.0,0.19999834]
[1769477306277,0.01128884,88583.0,88567.0,0.11535771]
[1769477306499,0.05644232,88586.0,88567.0,0.11535771]
[1769477306675,0.01128897,88582.0,88567.0,0.11535771]
[1769477306876,0.01128884,88583.0,88567.0,0.11535771]
[1769477309017,0.01128884,88583.0,88567.0,0.14550593]
[1769477309238,0.01128884,88583.0,88568.0,0.06571026]
[1769477309397,0.01128884,88583.0,88568.0,0.0655539]
[1769477309592,0.48804528,88585.0,88568.0,0.0655539]
[1769477309826,0.4703244,88585.0,88568.0,0.0655539]
[1769477311282,0.01128884,88583.0,88568.0,0.0655539]
[1769477312047,0.01128897,88582.0,88568.0,0.0655539]
[1769477312311,0.01128884,88583.0,88568.0,0.0655539]
[1769477312580,0.01128884,88583.0,88569.0,0.01448714]
[1769477313701,0.01128872,88584.0,88569.0,0.01448714]
[1769477314403,0.01128872,88584.0,88567.0,0.14550593]
[1769477314808,0.4703244,88585.0,88567.0,0.14550593]
[1769477314809,0.27220196,88585.0,88567.0,0.14550593]
[1769477315312,0.27220196,88585.0,88568.0,0.03239692]
[1769477315989,0.27220196,88585.0,88568.0,0.03224056]
[1769477316573,0.16947458,88603.0,88568.0,0.03224056]
[1769477316846,0.4703244,88599.0,88574.0,0.03456744]
[1769477317035,0.4703244,88599.0,88578.0,0.03456744]
[1769477317393,0.4703244,88599.0,88580.0,0.03456744]
[1769477318120,0.01128757,88593.0,88580.0,0.03456744]
[1769477318577,0.01128744,88594.0,88580.0,0.03456744]
[1769477318809,0.01128744,88594.0,88580.0,0.08932562]
[1769477318995,0.01128744,88594.0,88580.0,0.03456744]
[1769477319845,0.01128731,88595.0,88580.0,0.03456744]
[1769477320252,0.01772021,88592.0,88580.0,0.03456744]
[1769477320939,0.01128731,88595.0,88580.0,0.03456744]
[1769477321373,0.01128719,88596.0,88581.0,0.05460182]
[1769477321945,0.01128719,88596.0,88581.0,0.08684274]
[1769477324046,0.01772015,88593.0,88581.0,0.08684274]
[1769477324476,0.01772015,88593.0,88581.0,0.03224092]
[1769477326036,0.84683078,88591.0,88571.0,0.02462824]
[1769477326260,0.37650638,88591.0,88574.0,0.51301435]
[1769477326436,0.37650638,88591.0,88575.0,0.53764259]
[1769477328738,0.46522163,88591.0,88575.0,0.53764259]
[1769477329085,0.37650638,88591.0,88575.0,0.53764259]
[1769477329708,0.01772015,88593.0,88575.0,0.53764259]
[1769477329920,0.37650638,88590.0,88575.0,0.53764259]
[1769477332449,0.01772015,88593.0,88575.0,0.53764259]
[1769477332850,0.04033776,88593.0,88575.0,0.53764259]
[1769477333466,0.02261761,88592.0,88575.0,0.51301435]
[1769477333655,0.53621769,88591.0,88575.0,0.51301435]
[1769477333849,0.39912399,88590.0,88575.0,0.51301435]
[1769477334034,0.02261761,88588.0,88570.0,0.02341936]
[1769477334661,0.02261761,88588.0,88570.0,0.58007353]
[1769477335553,0.37650638,88590.0,88572.0,0.55665417]
[1769477335801,0.37650638,88590.0,88574.0,0.55665417]
[1769477335997,0.09049,88591.0,88574.0,0.55665417]
[1769477337706,0.09049,88591.0,88574.0,0.58007353]
[1769477338424,0.09049,88591.0,88574.0,0.68726729]
[1769477338607,0.09049,88591.0,88574.0,0.58007353]
[1769477341269,0.09049,88590.0,88574.0,0.58007353]
[1769477343432,0.09049,88590.0,88574.0,0.55665417]
[1769477343638,0.09049,88590.0,88576.0,0.58007353]
[1769477344261,0.09049,88590.0,88576.0,0.55665417]
[1769477345700,0.46699638,88590.0,88576.0,0.55665417]
[1769477346335,0.09049,88589.0,88576.0,0.55665417]
[1769477346668,0.09055296,88595.0,88576.0,0.55665417]
[1769477346875,0.02261761,88593.0,88576.0,0.55665417]
[1769477347084,0.37650638,88590.0,88568.0,0.55665417]
[1769477347288,0.37650638,88590.0,88567.0,0.03877707]
[1769477347289,0.01772056,88589.0,88570.0,0.55665417]
[1769477348509,0.01772056,88589.0,88570.0,0.58007353]
[1769477351162,0.39912399,88590.0,88570.0,0.58007353]
[1769477352989,0.02261761,88589.0,88570.0,0.58007353]
[1769477359720,0.01128833,88587.0,88570.0,0.58007353]
[1769477360166,0.01128846,88586.0,88570.0,0.58007353]
[1769477360537,0.01128833,88587.0,88570.0,0.58007353]
[1769477361152,1.1309097,88876.0,88571.0,0.50600359]
[1769477361153,0.13581466,88609.0,88571.0,0.50600359]
[1769477361358,0.02308534,88619.0,88601.0,0.50600359]
[1769477361538,0.02308534,88619.0,88603.0,0.50600359]
[1769477361736,0.01128438,88618.0,88603.0,0.50600359]
[1769477361938,0.01128451,88617.0,88603.0,0.50600359]
[1769477362157,0.01128451,88617.0,88602.0,0.53027571]
[1769477362158,0.01128477,88615.0,88602.0,0.53027571]
[1769477362601,0.01175016,88615.0,88602.0,0.53027571]
[1769477362797,0.00046539,88615.0,88602.0,0.53027571]
[1769477364800,0.00046539,88615.0,88603.0,0.02427212]
[1769477365003,0.00046539,88615.0,88602.0,0.50600359]
[1769477365340,0.00046539,88615.0,88607.0,0.50600359]
[1769477365514,0.00046539,88615.0,88609.0,0.53027571]
[1769477365713,0.020736,88626.0,88610.0,0.02427212]
[1769477365964,0.00028553,88623.0,88611.0,0.53027571]
[1769477366150,0.01128413,88620.0,88611.0,0.53027571]
[1769477366663,0.01128413,88620.0,88611.0,0.58330328]
[1769477366882,0.011284,88621.0,88611.0,0.58330328]
[1769477367388,0.01128387,88622.0,88612.0,0.02427212]
[1769477367520,0.01128387,88622.0,88613.0,0.10033965]
[1769477369273,0.01128387,88622.0,88613.0,0.07606753]
[1769477369471,0.01156928,88623.0,88616.0,0.02427212]
[1769477369667,0.01128349,88625.0,88619.0,0.50600359]
[1769477369921,0.01128349,88625.0,88619.0,0.5301034]
[1769477372663,0.93138825,88630.0,88604.0,0.50600359]
[1769477372953,0.37617017,88630.0,88608.0,0.50600359]
[1769477373150,0.37617017,88620.0,88608.0,0.50600359]
[1769477373523,0.01128489,88614.0,88608.0,0.50600359]
[1769477373730,0.01128528,88611.0,88608.0,0.53027571]
[1769477374231,0.01128515,88612.0,88608.0,0.53027571]
[1769477374749,0.01128528,88611.0,88608.0,0.50600359]
[1769477374986,0.01128528,88611.0,88609.0,0.02427212]
[1769477375113,0.01128528,88611.0,88609.0,0.53027571]
[1769477375515,0.01128528,88611.0,88609.0,0.50030359]
[1769477375772,0.01128515,88612.0,88609.0,0.50030359]
[1769477376151,0.01128515,88612.0,88604.0,0.00046539]
[1769477376350,0.03836804,88612.0,88604.0,0.00046539]
[1769477377032,0.01128566,88608.0,88604.0,0.00046539]
[1769477377402,0.05642969,88606.0,88604.0,0.00046539]
[1769477377751,0.06771478,88607.0,88604.0,0.00046539]
[1769477380064,0.01128579,88607.0,88604.0,0.50646898]
[1769477380906,0.01128579,88607.0,88604.0,0.00046539]
[1769477383107,0.00046539,88604.0,88597.0,0.02427212]
[1769477383445,0.04080125,88609.0,88597.0,0.00013953]
[1769477383651,0.04080125,88609.0,88568.0,0.09026288]
[1769477383652,0.0095346,88592.0,88568.0,0.09026288]
[1769477383852,0.0095346,88592.0,88570.0,0.50600359]
[1769477383853,0.37617017,88590.0,88570.0,0.50600359]
[1769477384029,0.37617017,88590.0,88572.0,0.50600359]
[1769477384235,0.37617017,88590.0,88573.0,0.11233096]
[1769477384554,0.37617017,88590.0,88572.0,0.50600359]
[1769477384555,0.01128846,88586.0,88572.0,0.50600359]
[1769477384765,0.01128859,88585.0,88572.0,0.50600359]
[1769477385342,0.01128872,88584.0,88572.0,0.50600359]
[1769477385511,0.01128859,88585.0,88570.0,0.02427212]
[1769477385717,0.37617017,88580.0,88570.0,0.02427212]
[1769477385953,0.04105441,88585.0,88570.0,0.53027571]
[1769477386619,0.01128948,88578.0,88570.0,0.53027571]
[1769477386787,0.01128935,88579.0,88570.0,0.53027571]
[1769477387167,0.3874594,88580.0,88570.0,0.53027571]
[1769477387748,0.37617017,88580.0,88570.0,0.53027571]
[1769477388948,0.37617017,88590.0,88574.0,0.02470523]
[1769477389166,0.37617017,88590.0,88577.0,0.60631307]
[1769477389370,0.020736,88606.0,88582.0,0.60631307]
[1769477389371,0.37617017,88600.0,88582.0,0.60631307]
[1769477389575,0.37617017,88600.0,88585.0,0.02470523]
[1769477389773,0.01128693,88598.0,88588.0,0.60631307]
[1769477389945,0.01128706,88597.0,88591.0,0.02470523]
[1769477390177,0.01128693,88598.0,88591.0,0.6310183]
[1769477390310,0.01128693,88598.0,88591.0,0.60631307]
[1769477390311,0.01128731,88595.0,88591.0,0.60631307]
[1769477390519,0.01128706,88597.0,88592.0,0.02470523]
[1769477390715,0.01128706,88597.0,88594.0,0.02470523]
[1769477390922,0.01128706,88597.0,88594.0,0.6310183]
[1769477391327,0.01128706,88597.0,88594.0,0.60631307]
[1769477391559,0.01128706,88597.0,88595.0,0.02470523]
[1769477391978,0.01128693,88598.0,88595.0,0.02470523]
[1769477392116,0.37617017,88604.0,88595.0,0.02470523]
[1769477392321,0.04081927,88600.0,88595.0,0.02470523]
[1769477392769,0.37617017,88604.0,88595.0,0.02470523]
[1769477394345,0.37617017,88605.0,88595.0,0.02470523]
[1769477395875,0.39904176,88610.0,88595.0,0.02470523]
[1769477396242,0.60536642,88609.0,88595.0,0.02470523]
[1769477396498,0.60536642,88609.0,88588.0,0.60631307]
[1769477396660,0.60536642,88609.0,88590.0,0.60631307]
[1769477396869,0.60536642,88609.0,88590.0,0.6310183]
[1769477398393,0.62823801,88609.0,88590.0,0.6310183]
[1769477399697,0.73483614,88609.0,88590.0,0.6310183]
[1769477400131,0.0354363,88605.0,88590.0,0.6310183]
[1769477400340,0.37617017,88600.0,88580.0,0.37617017]
[1769477400508,0.60536642,88599.0,88580.0,0.02481559]
[1769477400709,0.64652707,88599.0,88580.0,0.63112866]
[1769477400932,0.64652707,88599.0,88582.0,0.60631307]
[1769477401153,0.64652707,88599.0,88582.0,0.6310183]
[1769477401498,0.01128757,88593.0,88582.0,0.6310183]
[1769477401699,0.01128782,88591.0,88582.0,0.6310183]
[1769477401905,0.01128808,88589.0,88582.0,0.6310183]
[1769477402273,0.01128795,88590.0,88582.0,0.6310183]
[1769477403126,0.02287159,88590.0,88566.0,0.60631307]
[1769477403305,0.02287159,88588.0,88566.0,0.6310183]
[1769477403507,0.02287159,88588.0,88568.0,0.60631307]
[1769477403818,0.01128923,88580.0,88568.0,0.6310183]
[1769477404227,0.01128884,88583.0,88568.0,0.6310183]
[1769477404630,0.01128897,88582.0,88568.0,0.6310183]
[1769477405653,0.60536642,88585.0,88565.0,0.000236]
[1769477405829,0.37617017,88580.0,88565.0,0.000236]
[1769477406065,0.01128986,88575.0,88565.0,0.000236]
[1769477406604,0.01128973,88576.0,88565.0,0.000236]
[1769477407864,0.02287159,88576.0,88565.0,0.000236]
[1769477408059,0.02287159,88569.0,88565.0,0.000236]
[1769477408314,0.03416222,88569.0,88565.0,0.000236]
[1769477408898,0.03618658,88568.0,88565.0,0.000236]
[1769477409954,0.03618658,88568.0,88554.0,0.60631307]
[1769477409955,0.000236,88565.0,88554.0,0.60631307]
[1769477410426,0.03618658,88568.0,88554.0,0.60631307]
[1769477413487,0.01129088,88567.0,88554.0,0.60631307]
[1769477413641,0.05245166,88566.0,88554.0,0.60631307]
[1769477414316,0.04116065,88566.0,88554.0,0.60631307]
[1769477414519,0.01129088,88567.0,88554.0,0.60631307]
[1769477414858,0.01129075,88568.0,88554.0,0.60631307]
[1769477415090,0.01772269,88569.0,88556.0,0.60631307]
[1769477415754,0.01772269,88569.0,88560.0,0.60631307]
[1769477416546,0.01129075,88568.0,88560.0,0.60631307]
[1769477417328,0.01772269,88569.0,88560.0,0.60631307]
[1769477417545,0.01772415,88567.0,88560.0,0.60631307]
[1769477417808,0.02901332,88569.0,88560.0,0.60631307]
[1769477418790,0.01772269,88569.0,88560.0,0.60631307]
[1769477420140,0.02404021,88569.0,88559.0,0.37617017]
[1769477420376,0.02404021,88569.0,88556.0,0.02470523]
[1769477420606,0.02404021,88569.0,88556.0,0.02439245]
[1769477420737,0.020736,88588.0,88560.0,0.6063599]
[1769477420941,0.02313639,88590.0,88578.0,0.37617017]
[1769477421143,0.02313639,88590.0,88571.0,0.6063599]
[1769477421144,0.60286154,88590.0,88571.0,0.6063599]
[1769477422040,0.60286154,88590.0,88571.0,0.63125368]
[1769477422178,0.01128923,88580.0,88571.0,0.63125368]
[1769477422617,0.01128897,88582.0,88571.0,0.63125368]
[1769477422618,0.0112891,88581.0,88571.0,0.63125368]
[1769477422860,0.01128884,88583.0,88571.0,0.63125368]
[1769477423081,0.06773308,88583.0,88571.0,0.63125368]
[1769477423555,0.01128884,88583.0,88571.0,0.63125368]
[1769477424207,0.01128859,88585.0,88571.0,0.63125368]
[1769477424424,0.01128859,88585.0,88572.0,0.02489378]
[1769477424628,0.01128859,88585.0,88573.0,0.6063599]
[1769477425033,0.02313639,88590.0,88573.0,0.6063599]
[1769477427427,0.02313639,88590.0,88574.0,0.02510244]
[1769477427635,0.02313639,88590.0,88573.0,0.6063599]
[1769477430615,0.38007533,88591.0,88573.0,0.6063599]
[1769477430815,0.38007533,88591.0,88573.0,0.60644388]
[1769477431021,0.38007533,88591.0,88573.0,8.398e-05]
[1769477431364,0.40312774,88591.0,88573.0,8.398e-05]
[1769477431579,0.02305241,88590.0,88573.0,8.398e-05]
[1769477431849,0.63884703,88590.0,88573.0,8.398e-05]
[1769477432818,0.01128973,88576.0,88573.0,8.398e-05]
[1769477433023,0.05644041,88589.0,88573.0,8.398e-05]
[1769477433237,0.01128948,88578.0,88576.0,0.000236]
[1769477433443,0.01128948,88578.0,88573.0,0.60644388]
[1769477433645,0.01128935,88579.0,88573.0,0.60644388]
[1769477437468,0.02305241,88589.0,88573.0,0.60644388]
[1769477437667,0.0177221,88579.0,88573.0,0.70722382]
[1769477437867,0.02305241,88600.0,88575.0,0.6063599]
[1769477438211,0.01128795,88590.0,88581.0,0.63125368]
[1769477438823,0.01128808,88589.0,88581.0,0.63125368]
[1769477441358,0.01128795,88590.0,88581.0,0.63125368]
[1769477442433,0.01128795,88590.0,88581.0,0.02489378]
[1769477447252,0.01128795,88590.0,88582.0,0.6063599]
[1769477450265,0.01128795,88590.0,88581.0,0.02489378]
[1769477450461,0.017721,88596.0,88575.0,0.60949718]
[1769477450462,0.02419265,88595.0,88575.0,0.60949718]
[1769477450706,0.59302673,88594.0,88575.0,0.60949718]
[1769477450905,0.02419265,88593.0,88575.0,0.60949718]
[1769477453275,0.02419265,88593.0,88580.0,0.37646176]
[1769477453483,0.02419265,88593.0,88577.0,0.60949718]
[1769477453834,0.02419265,88593.0,88580.0,0.37646176]
[1769477454379,0.05644408,88584.0,88580.0,0.37646176]
[1769477454583,0.01128897,88582.0,88577.0,0.60949718]
[1769477455367,0.01128884,88583.0,88577.0,0.60949718]
[1769477455574,0.01128872,88584.0,88577.0,0.60949718]
[1769477455780,0.07332994,88592.0,88577.0,0.60949718]
[1769477461274,0.51189602,88600.0,88577.0,0.60949718]
[1769477464050,0.02419265,88593.0,88577.0,0.60949718]
[1769477469002,0.04191263,88593.0,88577.0,0.60949718]
[1769477471478,0.04191263,88593.0,88580.0,0.37646176]
[1769477472850,0.04191263,88593.0,88580.0,0.96279785]
[1769477473052,0.04191263,88593.0,88582.0,0.58633609]
[1769477473430,0.01771998,88593.0,88582.0,0.58633609]
[1769477473598,0.01128642,88602.0,88582.0,0.58633609]
[1769477473801,0.01128668,88600.0,88589.0,0.60949718]
[1769477474008,0.0112868,88599.0,88589.0,0.60949718]
[1769477474306,0.0112868,88599.0,88591.0,0.58633609]
[1769477474542,0.01128706,88597.0,88591.0,0.58633609]
[1769477474745,0.01128693,88598.0,88591.0,0.58633609]
[1769477474949,0.0112868,88599.0,88591.0,0.58633609]
[1769477475112,0.00940935,88599.0,88591.0,0.58633609]
[1769477475307,0.0092273,88599.0,88592.0,0.69099373]
[1769477475581,0.0092273,88599.0,88592.0,0.58633609]
[1769477478706,0.02419265,88605.0,88581.0,0.11612]
[1769477478707,0.02419265,88605.0,88587.0,0.58633609]
[1769477478912,0.01771791,88608.0,88583.0,0.11608]
[1769477478913,0.01,88587.0,88583.0,0.11608]
[1769477479589,0.02352231,88594.0,88583.0,0.11608]
[1769477479986,0.02352231,88593.0,88575.0,0.11608]
[1769477480194,0.02352231,88593.0,88575.0,0.69178601]
[1769477480970,0.02352231,88593.0,88575.0,0.57570601]
[1769477481179,0.02471169,88592.0,88575.0,0.57570601]
[1769477481403,0.05644474,88583.0,88575.0,0.57570601]
[1769477481713,0.0112891,88581.0,88575.0,0.57570601]
[1769477481949,0.01128923,88580.0,88575.0,0.54175861]
[1769477482083,0.0112891,88581.0,88575.0,0.50781121]
[1769477482300,0.0112891,88581.0,88575.0,0.47386381]
[1769477482495,0.0112891,88581.0,88570.0,0.49254176]
[1769477482704,0.01133562,88581.0,88570.0,0.49254176]
[1769477483101,0.01133562,88581.0,88571.0,0.56856068]
[1769477483300,4.652e-05,88581.0,88571.0,0.56856068]
[1769477483561,0.22576166,88590.0,88571.0,0.56856068]
[1769477483715,0.0564436,88584.0,88571.0,0.59161451]
[1769477484120,0.01128859,88585.0,88571.0,0.59161451]
[1769477484338,0.01128859,88585.0,88572.0,0.02305383]
[1769477484339,0.01128897,88582.0,88572.0,0.02305383]
[1769477484484,0.01128897,88582.0,88572.0,0.59144511]
[1769477486867,0.01128897,88582.0,88573.0,0.02305383]
[1769477487066,0.01128897,88582.0,88572.0,0.56839128]
[1769477487885,0.01128859,88585.0,88572.0,0.56839128]
[1769477488871,0.01128859,88585.0,88573.0,0.02305383]
[1769477489087,0.01128859,88585.0,88573.0,0.55749541]
[1769477489306,0.10781921,88591.0,88573.0,0.55749541]
[1769477490308,0.10781921,88591.0,88573.0,0.66482032]
[1769477490545,0.10781921,88591.0,88580.0,0.37645048]
[1769477490736,0.08310752,88591.0,88580.0,0.37645048]
[1769477491037,0.60728932,88598.0,88580.0,0.37645048]
[1769477491038,0.02471169,88596.0,88580.0,0.30855108]
[1769477491253,0.02471169,88596.0,88580.0,0.27460138]
[1769477491406,0.02471169,88596.0,88581.0,0.53444158]
[1769477491748,0.10356025,88599.0,88583.0,0.55749541]
[1769477491897,0.10356025,88599.0,88589.0,0.37645048]
[1769477492091,0.01128731,88595.0,88589.0,0.34250078]
[1769477492337,0.01128731,88595.0,88585.0,0.53444158]
[1769477492549,0.01128731,88595.0,88585.0,0.50049188]
[1769477492848,0.01128731,88595.0,88585.0,0.43259248]
[1769477493068,0.01128719,88596.0,88585.0,0.39864278]
[1769477493215,0.01128719,88596.0,88585.0,0.36469308]
[1769477493422,0.01128719,88596.0,88585.0,0.33074338]
[1769477493627,0.01128719,88596.0,88585.0,0.29679368]
[1769477496959,0.01128719,88596.0,88586.0,0.02305383]
[1769477497185,0.01128693,88598.0,88587.0,0.56839128]
[1769477502451,0.01771941,88599.0,88587.0,0.56839128]
[1769477502920,0.01771941,88599.0,88587.0,0.59144511]
[1769477503678,0.09043406,88597.0,88587.0,0.59144511]
[1769477505270,0.09043406,88596.0,88587.0,0.59144511]
[1769477505902,0.09043406,88597.0,88587.0,0.59144511]
[1769477506333,0.09043406,88597.0,88587.0,0.56839128]
[1769477507982,0.10172112,88597.0,88587.0,0.56839128]
[1769477508948,0.10172112,88597.0,88583.0,0.02305383]
[1769477509151,0.02597289,88596.0,88583.0,0.02305383]
[1769477512117,0.02597289,88596.0,88581.0,0.58290795]
[1769477512314,0.02597289,88596.0,88581.0,0.58295448]
[1769477513708,0.11944001,88597.0,88581.0,0.58295448]
[1769477515814,0.14274367,88597.0,88581.0,0.58295448]
[1769477516214,0.09043406,88596.0,88581.0,0.58295448]
[1769477516532,0.14274367,88597.0,88581.0,0.58295448]
[1769477517249,0.09043406,88596.0,88581.0,0.58295448]
[1769477517556,0.09043406,88596.0,88581.0,0.69903448]
[1769477518814,0.61212829,88595.0,88581.0,4.653e-05]
[1769477519057,0.06772939,88588.0,88581.0,4.653e-05]
[1769477519302,0.02330366,88588.0,88581.0,4.653e-05]
[1769477519497,0.01128833,88587.0,88581.0,4.653e-05]
[1769477519907,0.01128821,88588.0,88581.0,4.653e-05]
[1769477520036,0.02604802,88587.0,88581.0,4.653e-05]
[1769477524138,0.03733635,88587.0,88581.0,4.653e-05]
[1769477524364,0.01128833,88587.0,88581.0,4.653e-05]
[1769477525535,0.01128821,88588.0,88581.0,4.653e-05]
[1769477526171,0.01128833,88587.0,88581.0,4.653e-05]
[1769477526380,0.01128821,88588.0,88581.0,4.653e-05]
[1769477526583,0.01128833,88587.0,88581.0,4.653e-05]
[1769477526923,0.01128846,88586.0,88581.0,4.653e-05]
[1769477527165,0.01128821,88588.0,88581.0,4.653e-05]
[1769477530543,0.01128782,88591.0,88581.0,4.653e-05]
[1769477530757,0.05643786,88593.0,88581.0,4.653e-05]
[1769477530956,0.01128821,88588.0,88581.0,4.653e-05]
[1769477531154,0.01128833,88587.0,88581.0,4.653e-05]
[1769477531553,0.01128821,88588.0,88581.0,4.653e-05]
[1769477531948,0.01128782,88591.0,88581.0,4.653e-05]
[1769477532361,0.5128411,88595.0,88581.0,4.653e-05]
[1769477533075,0.01128795,88590.0,88581.0,4.653e-05]
[1769477533655,0.01128808,88589.0,88581.0,4.653e-05]
[1769477536007,0.02330366,88590.0,88581.0,4.653e-05]
[1769477536214,0.01128808,88589.0,88581.0,4.653e-05]
[1769477536414,0.01128821,88588.0,88581.0,4.653e-05]
[1769477536658,0.01128846,88586.0,88581.0,4.653e-05]
[1769477536839,0.01128833,88587.0,88581.0,4.653e-05]
[1769477537002,0.01128846,88586.0,88581.0,4.653e-05]
[1769477537348,0.01128872,88584.0,88581.0,4.653e-05]
[1769477537548,0.01128846,88586.0,88581.0,4.653e-05]
[1769477545524,0.01128846,88586.0,88570.0,0.37645048]
[1769477545525,4.653e-05,88581.0,88560.0,0.0001462]
[1769477545725,0.63058751,88580.0,88569.0,0.00019272]
[1769477547655,0.0237856,88584.0,88569.0,0.00019272]
[1769477548124,0.0237856,88584.0,88570.0,0.37645048]
[1769477550479,0.64830784,88586.0,88571.0,0.02328685]
[1769477552995,0.41930248,88586.0,88571.0,0.02328685]
[1769477560341,0.40158215,88586.0,88571.0,0.02328685]
[1769477563748,0.09047389,88588.0,88571.0,0.02328685]
[1769477564131,0.62575325,88587.0,88571.0,0.02328685]
[1769477564332,0.71275219,88587.0,88571.0,0.02328685]
[1769477566270,0.80322608,88587.0,88571.0,0.02328685]
[1769477566456,0.62575325,88586.0,88571.0,0.02328685]
[1769477570963,0.01772039,88583.0,88571.0,0.02328685]
[1769477571763,0.01772028,88618.0,88575.0,0.62173299]
[1769477571764,0.13543426,88601.0,88575.0,0.62173299]
[1769477571988,0.13543426,88601.0,88569.0,0.00019272]
[1769477571989,0.01786622,88600.0,88583.0,0.02708008]
[1769477572190,0.0001462,88600.0,88586.0,0.62173299]
[1769477572398,0.0001462,88600.0,88589.0,0.02708008]
[1769477572634,0.0001462,88600.0,88590.0,0.62173299]
[1769477572808,0.0001462,88600.0,88591.0,0.02708008]
[1769477573121,0.0001462,88600.0,88591.0,0.0882066]
[1769477573500,0.0001462,88600.0,88591.0,0.02708008]
[1769477573667,0.0112868,88599.0,88591.0,0.02708008]
[1769477573851,0.0001462,88600.0,88591.0,0.02708008]
[1769477575672,0.16929283,88622.0,88591.0,0.02708008]
[1769477575673,0.0002,88650.0,88592.0,0.0384]
[1769477575877,0.0002,88650.0,88591.0,0.02708008]
[1769477575878,0.0002,88650.0,88631.0,0.02708008]
[1769477575879,0.0001254,88645.0,88631.0,0.02708008]
[1769477576055,0.0001254,88645.0,88620.0,0.37648871]
[1769477576056,0.0001254,88645.0,88633.0,0.62173299]
[1769477576269,0.0001254,88645.0,88636.0,0.02708008]
[1769477576601,0.0001254,88645.0,88640.0,0.02708008]
[1769477576799,0.0001254,88645.0,88641.0,0.02708008]
[1769477576980,0.00059112,88645.0,88641.0,0.02708008]
[1769477578409,0.00059112,88645.0,88642.0,0.62173299]
[1769477578572,0.00059112,88645.0,88643.0,0.02708008]
[1769477580879,0.00059112,88645.0,88643.0,0.62173299]
[1769477581095,0.00059112,88645.0,88644.0,0.02708008]
[1769477585666,0.00059112,88645.0,88631.0,0.62173299]
[1769477585877,0.00059112,88645.0,88636.0,0.02389718]
[1769477586477,0.0002,88650.0,88639.0,0.62173299]
[1769477586678,0.00033962,88650.0,88641.0,0.02389718]
[1769477587734,0.00033962,88650.0,88642.0,0.02389718]
[1769477588791,0.00033962,88650.0,88642.0,0.12610907]
[1769477589672,0.00033962,88650.0,88642.0,0.02389718]
[1769477593765,0.00033962,88650.0,88640.0,0.37648871]
[1769477593766,0.0002,88679.0,88644.0,1.3760203]
[1769477593931,0.00583982,88719.0,88644.0,1.3760203]
[1769477593933,0.0002401,88697.0,88669.0,0.02389718]
[1769477594103,0.0002401,88697.0,88688.0,0.02389718]
[1769477594301,0.0002401,88697.0,88688.0,0.02359718]
[1769477594705,0.0002401,88697.0,88688.0,0.02344075]
[1769477595073,0.59942955,88696.0,88687.0,0.37648871]
[1769477595306,0.59942955,88696.0,88674.0,0.62173299]
[1769477595307,0.00059112,88688.0,88680.0,0.37648871]
[1769477596387,0.58592067,88696.0,88680.0,0.37648871]
[1769477596592,0.01127459,88695.0,88680.0,0.48809149]
[1769477596790,0.01127471,88694.0,88680.0,0.48809149]
[1769477596988,0.01127471,88694.0,88684.0,0.37648871]
[1769477597202,0.01127459,88695.0,88684.0,0.37648871]
[1769477597401,0.01127471,88694.0,88684.0,0.37648871]
[1769477597602,0.01127459,88695.0,88684.0,0.37648871]
[1769477597966,0.58592067,88696.0,88685.0,0.05119887]
[1769477598174,0.0002401,88697.0,88686.0,0.40038589]
[1769477600332,0.0002401,88697.0,88687.0,0.65106282]
[1769477600663,0.0002401,88697.0,88689.0,0.02496722]
[1769477600841,0.38841355,88730.0,88700.0,0.33008871]
[1769477601030,0.03886537,88725.0,88690.0,0.4014887]
[1769477601229,0.03886537,88725.0,88690.0,0.37648871]
[1769477601474,0.03886537,88725.0,88691.0,0.02499999]
[1769477601653,0.03886537,88725.0,88680.0,0.48809149]
[1769477601654,0.03886537,88725.0,88663.0,0.116]
[1769477601655,0.37648871,88701.0,88663.0,0.116]
[1769477601867,0.01127408,88699.0,88680.0,0.37648871]
[1769477602068,0.02775716,88700.0,88680.0,0.37648871]
[1769477602069,0.01127471,88694.0,88680.0,0.37648871]
[1769477602401,0.01127471,88694.0,88680.0,0.48174386]
[1769477602402,0.01127484,88693.0,88680.0,0.48174386]
[1769477602591,0.01127535,88689.0,88680.0,0.48174386]
[1769477602803,0.01127573,88686.0,88679.0,0.02499999]
[1769477603093,0.01127573,88686.0,88670.0,0.37648871]
[1769477603291,0.01127573,88686.0,88671.0,0.11135161]
[1769477603493,0.01127573,88686.0,88670.0,0.49248871]
[1769477603494,0.01127573,88686.0,88672.0,0.11135161]
[1769477603743,0.01127573,88686.0,88670.0,0.51745593]
[1769477603931,0.01127573,88686.0,88671.0,0.11135896]
[1769477604080,0.01127573,88686.0,88672.0,0.11135896]
[1769477604279,0.01127573,88686.0,88670.0,0.51745593]
[1769477604280,0.01127573,88686.0,88673.0,0.11135896]
[1769477604514,0.01127573,88686.0,88674.0,0.11135896]
[1769477604721,0.01127573,88686.0,88676.0,0.37648871]